bitfinex-derivatives/quotes_BTCF0:USTF0_20241006
["timestamp","ask_amount","ask_price","bid_price","bid_amount"]
[1728190688603,0.457801,61921.0,61920.0,0.18763366]
[1728190688805,0.097001,61921.0,61920.0,0.18763366]
[1728190689305,0.457801,61921.0,61920.0,0.18763366]
[1728190690711,0.457801,61921.0,61920.0,0.0004]
[1728190692898,0.54194136,61921.0,61920.0,0.0004]
[1728190693698,0.18114136,61921.0,61920.0,0.0004]
[1728190693900,0.54194136,61921.0,61920.0,0.0004]
[1728190694906,0.18114136,61921.0,61920.0,0.0004]
[1728190695112,0.54194136,61921.0,61920.0,0.0004]
[1728190696104,0.54195236,61921.0,61920.0,0.0004]
[1728190699713,0.457801,61921.0,61920.0,0.0004]
[1728190700215,0.097001,61921.0,61920.0,0.0004]
[1728190700523,0.457801,61921.0,61920.0,0.0004]
[1728190701215,0.097001,61921.0,61920.0,0.0004]
[1728190701511,0.457801,61921.0,61920.0,0.0004]
[1728190704512,0.097001,61921.0,61920.0,0.0004]
[1728190705012,0.457801,61921.0,61920.0,0.0004]
[1728190705600,0.097001,61921.0,61920.0,0.0004]
[1728190705807,0.457801,61921.0,61920.0,0.0004]
[1728190707306,0.097001,61921.0,61920.0,0.0004]
[1728190707511,0.457801,61921.0,61920.0,0.0004]
[1728190707821,0.457801,61921.0,61920.0,0.06502861]
[1728190708905,0.097001,61921.0,61920.0,0.06502861]
[1728190709107,0.457801,61921.0,61920.0,0.06502861]
[1728190709311,0.097001,61921.0,61920.0,0.06502861]
[1728190710013,0.457801,61921.0,61920.0,0.06502861]
[1728190710412,0.457801,61921.0,61920.0,0.0004]
[1728190712616,0.097001,61921.0,61920.0,0.0004]
[1728190712812,0.457801,61921.0,61920.0,0.0004]
[1728190714812,0.18111792,61921.0,61920.0,0.0004]
[1728190715207,0.54191792,61921.0,61920.0,0.0004]
[1728190715809,0.18111792,61921.0,61920.0,0.0004]
[1728190716403,0.54191792,61921.0,61920.0,0.0004]
[1728190717314,0.18111792,61921.0,61920.0,0.0004]
[1728190717516,0.54191792,61921.0,61920.0,0.0004]
[1728190718920,0.18111792,61921.0,61920.0,0.0004]
[1728190719122,0.54191792,61921.0,61920.0,0.0004]
[1728190719420,0.18111792,61921.0,61920.0,0.0004]
[1728190719618,0.54191792,61921.0,61920.0,0.0004]
[1728190720517,0.54192302,61921.0,61920.0,0.0004]
[1728190720819,0.54192708,61921.0,61920.0,0.0004]
[1728190722819,0.457801,61921.0,61920.0,0.0004]
[1728190724115,0.097001,61921.0,61920.0,0.0004]
[1728190724818,0.457801,61921.0,61920.0,0.0004]
[1728190725022,0.097001,61921.0,61920.0,0.0004]
[1728190725222,0.457801,61921.0,61920.0,0.0004]
[1728190726116,0.097001,61921.0,61920.0,0.0004]
[1728190726519,0.457801,61921.0,61920.0,0.0004]
[1728190729523,0.097001,61921.0,61920.0,0.0004]
[1728190729828,0.54188673,61921.0,61920.0,0.0004]
[1728190730420,0.18108673,61921.0,61920.0,0.0004]
[1728190730717,0.23252885,61921.0,61920.0,0.0004]
[1728190730922,0.59332885,61921.0,61920.0,0.0004]
[1728190731314,0.23252885,61921.0,61920.0,0.0004]
[1728190731518,0.59332885,61921.0,61920.0,0.0004]
[1728190732227,0.23252885,61921.0,61920.0,0.0004]
[1728190732429,0.59332885,61921.0,61920.0,0.0004]
[1728190733622,0.23252885,61921.0,61920.0,0.0004]
[1728190734131,0.59332885,61921.0,61920.0,0.0004]
[1728190734432,0.23252885,61921.0,61920.0,0.0004]
[1728190734631,0.59332885,61921.0,61920.0,0.0004]
[1728190734820,0.23252885,61921.0,61920.0,0.0004]
[1728190735321,0.59332885,61921.0,61920.0,0.0004]
[1728190735517,0.23252885,61921.0,61920.0,0.0004]
[1728190736337,0.59332885,61921.0,61920.0,0.0004]
[1728190736833,0.097001,61921.0,61920.0,0.0004]
[1728190737031,0.457801,61921.0,61920.0,0.0004]
[1728190737227,0.097001,61921.0,61920.0,0.0004]
[1728190737530,0.457801,61921.0,61920.0,0.0004]
[1728190737936,0.097001,61921.0,61920.0,0.0004]
[1728190738720,0.457801,61921.0,61920.0,0.0004]
[1728190739124,0.097001,61921.0,61920.0,0.0004]
[1728190739736,0.457801,61921.0,61920.0,0.0004]
[1728190740131,0.097001,61921.0,61920.0,0.0004]
[1728190740830,0.457801,61921.0,61920.0,0.0004]
[1728190741231,0.097001,61921.0,61920.0,0.0004]
[1728190741534,0.457801,61921.0,61920.0,0.0004]
[1728190744227,0.097001,61921.0,61920.0,0.0004]
[1728190744428,0.457801,61921.0,61920.0,0.0004]
[1728190744929,0.23247452,61921.0,61920.0,0.0004]
[1728190745136,0.18105291,61921.0,61920.0,0.0004]
[1728190745437,0.54185291,61921.0,61920.0,0.0004]
[1728190745627,0.18105291,61921.0,61920.0,0.0004]
[1728190746336,0.54185291,61921.0,61920.0,0.0004]
[1728190748642,0.18105291,61921.0,61920.0,0.0004]
[1728190748846,0.54185291,61921.0,61920.0,0.0004]
[1728190749334,0.18105291,61921.0,61920.0,0.0004]
[1728190749535,0.54185291,61921.0,61920.0,0.0004]
[1728190751543,0.51125291,61921.0,61920.0,0.0004]
[1728190751727,0.56267622,61921.0,61920.0,0.0004]
[1728190752040,0.427201,61921.0,61920.0,0.0004]
[1728190752242,0.066401,61921.0,61920.0,0.0004]
[1728190752433,0.427201,61921.0,61920.0,0.0004]
[1728190754033,0.066401,61921.0,61920.0,0.0004]
[1728190754439,0.427201,61921.0,61920.0,0.0004]
[1728190756235,0.066401,61921.0,61920.0,0.0004]
[1728190756438,0.427201,61921.0,61920.0,0.0004]
[1728190756742,0.066401,61921.0,61920.0,0.0004]
[1728190756938,0.427201,61921.0,61920.0,0.0004]
[1728190759540,0.066401,61921.0,61920.0,0.0004]
[1728190759747,0.427201,61921.0,61920.0,0.0004]
[1728190759943,0.066401,61921.0,61920.0,0.0004]
[1728190760149,0.427201,61921.0,61920.0,0.0004]
[1728190760745,0.427201,61921.0,61920.0,0.0650467]
[1728190762854,0.066401,61921.0,61920.0,0.0650467]
[1728190763151,0.427201,61921.0,61920.0,0.0650467]
[1728190763957,0.427201,61921.0,61920.0,0.0004]
[1728190764159,0.066401,61921.0,61920.0,0.0004]
[1728190764455,0.427201,61921.0,61920.0,0.0004]
[1728190764860,0.066401,61921.0,61920.0,0.0650467]
[1728190765450,0.427201,61921.0,61920.0,0.0650467]
[1728190766956,0.51117087,61921.0,61920.0,0.0004]
[1728190767354,0.15037087,61921.0,61920.0,0.0004]
[1728190767651,0.51117087,61921.0,61920.0,0.0004]
[1728190768758,0.5111752,61921.0,61920.0,0.0004]
[1728190769757,0.1503752,61921.0,61920.0,0.0004]
[1728190770057,0.5111752,61921.0,61920.0,0.0004]
[1728190771764,0.1503752,61921.0,61920.0,0.0004]
[1728190771950,0.5111752,61921.0,61920.0,0.0004]
[1728190772546,0.1503752,61921.0,61920.0,0.0004]
[1728190772757,0.5111752,61921.0,61920.0,0.0004]
[1728190774561,0.56254148,61921.0,61920.0,0.0004]
[1728190775060,0.427201,61921.0,61920.0,0.0004]
[1728190775572,0.066401,61921.0,61920.0,0.0004]
[1728190776059,0.427201,61921.0,61920.0,0.0004]
[1728190776657,0.066401,61921.0,61920.0,0.0004]
[1728190776849,0.427201,61921.0,61920.0,0.0004]
[1728190777860,0.066401,61921.0,61920.0,0.0004]
[1728190778054,0.427201,61921.0,61920.0,0.0004]
[1728190778255,0.066401,61921.0,61920.0,0.0004]
[1728190778559,0.427201,61921.0,61920.0,0.0004]
[1728190778953,0.066401,61921.0,61920.0,0.0004]
[1728190779565,0.427201,61921.0,61920.0,0.0004]
[1728190779966,0.066401,61921.0,61920.0,0.0004]
[1728190780663,0.427201,61921.0,61920.0,0.0004]
[1728190782062,0.51116224,61921.0,61920.0,0.0004]
[1728190783471,0.427201,61921.0,61920.0,0.0004]
[1728190783663,0.51115947,61921.0,61920.0,0.0004]
[1728190784066,0.15035947,61921.0,61920.0,0.0004]
[1728190784774,0.51115947,61921.0,61920.0,0.0004]
[1728190785160,0.15035947,61921.0,61920.0,0.0004]
[1728190785361,0.51115947,61921.0,61920.0,0.0004]
[1728190786863,0.70750278,61921.0,61920.0,0.0004]
[1728190787072,0.56252445,61921.0,61920.0,0.0004]
[1728190787969,0.20172445,61921.0,61920.0,0.0004]
[1728190788561,0.56252445,61921.0,61920.0,0.0004]
[1728190789371,0.20172445,61921.0,61920.0,0.0004]
[1728190789572,0.56252445,61921.0,61920.0,0.0004]
[1728190789967,0.427201,61921.0,61920.0,0.0004]
[1728190792173,0.066401,61921.0,61920.0,0.0004]
[1728190792481,0.427201,61921.0,61920.0,0.0004]
[1728190793380,0.066401,61921.0,61920.0,0.0004]
[1728190793577,0.427201,61921.0,61920.0,0.0004]
[1728190795579,0.066401,61921.0,61920.0,0.0004]
[1728190795775,0.427201,61921.0,61920.0,0.0004]
[1728190796177,0.066401,61921.0,61920.0,0.0004]
[1728190796380,0.427201,61921.0,61920.0,0.0004]
[1728190797579,0.066401,61921.0,61920.0,0.0004]
[1728190797773,0.427201,61921.0,61920.0,0.0004]
[1728190798680,0.066401,61921.0,61920.0,0.0004]
[1728190799185,0.427201,61921.0,61920.0,0.0004]
[1728190799674,0.066401,61921.0,61920.0,0.0004]
[1728190799983,0.427201,61921.0,61920.0,0.0004]
[1728190804982,0.51112415,61921.0,61920.0,0.0004]
[1728190805594,0.51112357,61921.0,61920.0,0.0004]
[1728190806485,0.51110894,61921.0,61920.0,0.0004]
[1728190809385,0.15030894,61921.0,61920.0,0.0004]
[1728190809587,0.51110894,61921.0,61920.0,0.0004]
[1728190811180,0.51110563,61921.0,61920.0,0.0004]
[1728190811978,0.427201,61921.0,61920.0,0.0004]
[1728190812181,0.066401,61921.0,61920.0,0.0004]
[1728190812578,0.427201,61921.0,61920.0,0.0004]
[1728190814087,0.458201,61921.0,61920.0,0.0004]
[1728190819895,0.427201,61921.0,61920.0,0.0004]
[1728190820095,0.46600573,61921.0,61920.0,0.0004]
[1728190821102,0.46601141,61921.0,61920.0,0.0004]
[1728190821302,0.51104365,61921.0,61920.0,0.0004]
[1728190822705,0.15024365,61921.0,61920.0,0.0004]
[1728190823097,0.51104365,61921.0,61920.0,0.0004]
[1728190824902,0.15024365,61921.0,61920.0,0.0004]
[1728190825207,0.51104365,61921.0,61920.0,0.0004]
[1728190825405,0.51104365,61921.0,61920.0,0.02894278]
[1728190825601,0.51104365,61921.0,61920.0,0.0004]
[1728190825904,0.51099585,61921.0,61920.0,0.0004]
[1728190826407,0.46597612,61921.0,61920.0,0.0004]
[1728190827207,0.427201,61921.0,61920.0,0.18766241]
[1728190828202,0.066401,61921.0,61920.0,0.18766241]
[1728190828711,0.066401,61921.0,61920.0,0.0004]
[1728190835117,0.15036204,61921.0,61920.0,0.0004]
[1728190836998,0.20172832,61921.0,61920.0,0.0004]
[1728190837309,0.21137933,61921.0,61920.0,0.0004]
[1728190837513,0.34670903,61921.0,61920.0,0.0004]
[1728190840916,0.08535629,61921.0,61920.0,1.149482]
[1728190841113,0.04524681,61921.0,61920.0,0.065002]
[1728190841412,0.04524681,61921.0,61920.0,1.149482]
[1728190841815,0.3608,61922.0,61920.0,1.19488]
[1728190842115,0.3608,61922.0,61921.0,0.26882332]
[1728190842920,0.3618,61922.0,61921.0,0.26882332]
[1728190843305,0.3618,61922.0,61921.0,0.17292918]
[1728190844515,0.001,61922.0,61921.0,0.17292918]
[1728190844921,0.0113,61925.0,61924.0,0.064598]
[1728190845218,0.064595,61927.0,61924.0,0.36260395]
[1728190845422,0.064595,61927.0,61926.0,0.0004]
[1728190848012,0.064595,61927.0,61926.0,0.0014]
[1728190848423,0.064595,61927.0,61926.0,0.0024]
[1728190850615,0.064595,61927.0,61926.0,0.03093564]
[1728190854923,0.0113,61928.0,61926.0,0.03093564]
[1728190855122,0.0113,61928.0,61927.0,0.15879351]
[1728190855324,0.51330144,61929.0,61927.0,0.15879351]
[1728190855522,0.51166144,61929.0,61928.0,0.0004]
[1728190857125,0.59464011,61929.0,61928.0,0.0004]
[1728190857928,0.59464011,61929.0,61928.0,0.0014]
[1728190857929,0.08337867,61929.0,61928.0,0.0014]
[1728190858525,0.08337867,61929.0,61928.0,0.0024]
[1728190859631,0.13414528,61929.0,61928.0,0.0024]
[1728190859823,0.1341483,61929.0,61928.0,0.0024]
[1728190863321,0.27914698,61929.0,61928.0,0.0024]
[1728190865133,0.14537833,61929.0,61928.0,0.0024]
[1728190865334,0.0004,61929.0,61928.0,0.0024]
[1728190870836,0.0004,61929.0,61928.0,0.066994]
[1728190872339,0.13405941,61929.0,61927.0,0.09659626]
[1728190872630,0.29550761,61928.0,61927.0,0.09659626]
[1728190873736,0.30714492,61928.0,61927.0,0.09659626]
[1728190874034,0.27935613,61928.0,61927.0,0.09759626]
[1728190874422,0.13405941,61928.0,61927.0,0.09659626]
[1728190874621,0.13405941,61928.0,61927.0,0.09759626]
[1728190874622,0.28035613,61928.0,61927.0,0.09759626]
[1728190874836,0.28035613,61928.0,61927.0,0.09859626]
[1728190875229,0.08432638,61928.0,61927.0,0.09859626]
[1728190875625,0.14769672,61928.0,61927.0,0.09859626]
[1728190875834,0.2813489,61928.0,61927.0,0.09859626]
[1728190876731,0.08532638,61928.0,61927.0,0.09859626]
[1728190877331,0.08388923,61928.0,61927.0,0.09859626]
[1728190880239,0.0024,61928.0,61927.0,0.09859626]
[1728190881239,0.0024,61928.0,61927.0,0.16319097]
[1728190881436,0.0024,61928.0,61927.0,0.09859626]
[1728190887451,0.0024,61928.0,61927.0,0.16319126]
[1728190895666,0.08414101,61928.0,61927.0,0.16319126]
[1728190896875,0.0463138,61928.0,61927.0,0.16319126]
[1728190897072,0.08413639,61928.0,61927.0,0.16319126]
[1728190897371,0.0024,61928.0,61927.0,0.16319126]
[1728190897563,0.13413821,61928.0,61927.0,0.16319126]
[1728190897959,0.13413821,61928.0,61927.0,0.19589126]
[1728190898377,0.08413639,61928.0,61927.0,0.19589126]
[1728190901885,0.0841478,61928.0,61927.0,0.19589126]
[1728190902380,0.0024,61928.0,61927.0,0.19589126]
[1728190903673,0.0024,61928.0,61927.0,0.2443328]
[1728190903979,0.0024,61928.0,61927.0,0.19589126]
[1728190904364,0.0024,61928.0,61927.0,0.26047945]
[1728190905675,0.0004,61929.0,61928.0,0.064594]
[1728190905872,0.0113,61931.0,61928.0,0.064594]
[1728190905873,0.0113,61931.0,61930.0,0.174592]
[1728190906073,0.0004,61932.0,61931.0,0.064591]
[1728190906481,0.0004,61932.0,61931.0,0.064991]
[1728190907167,0.0014,61932.0,61931.0,0.065991]
[1728190908273,0.0014,61932.0,61931.0,0.066991]
[1728190908274,0.0024,61932.0,61931.0,0.066991]
[1728190910475,0.04045463,61932.0,61931.0,0.066991]
[1728190910669,0.0024,61932.0,61931.0,0.066991]
[1728190911178,0.0845534,61932.0,61931.0,0.066991]
[1728190911379,0.04045463,61932.0,61931.0,0.066991]
[1728190913173,0.04045463,61932.0,61931.0,1.151391]
[1728190913376,0.0024,61932.0,61931.0,1.151391]
[1728190914774,0.0014,61932.0,61931.0,0.551391]
[1728190915883,0.0004,61932.0,61931.0,0.552391]
[1728190918988,0.0004,61932.0,61931.0,0.13244707]
[1728190919990,0.0004,61932.0,61931.0,0.067991]
[1728190925894,0.03850298,61932.0,61931.0,0.067991]
[1728190926295,0.0004,61932.0,61931.0,0.067991]
[1728190930400,0.03857437,61932.0,61931.0,0.067991]
[1728190931291,0.0004,61932.0,61931.0,0.067991]
[1728190932195,0.03857493,61932.0,61931.0,0.067991]
[1728190932496,0.0004,61932.0,61931.0,0.25562779]
[1728190933493,0.0004,61932.0,61931.0,0.17489499]
[1728190936503,0.0004,61932.0,61931.0,0.25560796]
[1728190937503,0.0004,61932.0,61931.0,0.17489499]
[1728190939110,0.0004,61932.0,61931.0,0.17500517]
[1728190942607,0.0004,61932.0,61931.0,0.27189931]
[1728190946800,0.0004,61932.0,61931.0,0.17500517]
[1728190947609,0.04472084,61932.0,61931.0,0.067991]
[1728190947821,0.08289401,61932.0,61931.0,0.067991]
[1728190948411,0.08289401,61932.0,61931.0,0.428791]
[1728190948624,0.08289401,61932.0,61931.0,0.538791]
[1728190948803,0.08294249,61932.0,61931.0,0.538791]
[1728190949009,0.03862165,61932.0,61931.0,0.538791]
[1728190951217,0.03862165,61932.0,61931.0,0.177991]
[1728190951618,0.03862165,61932.0,61931.0,0.538791]
[1728190952213,0.03862165,61932.0,61931.0,0.428791]
[1728190952418,0.06499,61932.0,61931.0,0.0034]
[1728190952621,0.14751348,61932.0,61931.0,0.0034]
[1728190954122,0.14751348,61932.0,61928.0,0.0004]
[1728190954123,0.064593,61929.0,61928.0,0.0004]
[1728190954317,0.25711648,61929.0,61928.0,0.0004]
[1728190954524,0.25751648,61929.0,61928.0,0.0004]
[1728190954712,0.174993,61929.0,61928.0,0.0004]
[1728190954910,0.064993,61929.0,61928.0,0.0004]
[1728190955113,0.064993,61929.0,61928.0,0.1104]
[1728190955415,0.064993,61929.0,61928.0,0.1194]
[1728190955823,0.0004,61929.0,61928.0,0.18399016]
[1728190956025,0.0004,61929.0,61928.0,0.1194]
[1728190956323,0.0004,61929.0,61928.0,0.24853424]
[1728190957415,0.0004,61929.0,61928.0,0.24852949]
[1728190962715,0.03823065,61929.0,61928.0,0.183994]
[1728190967932,0.0004,61929.0,61928.0,0.183994]
[1728190968429,0.03823961,61929.0,61928.0,0.183994]
[1728190969732,0.0004,61929.0,61928.0,0.29116359]
[1728190972824,0.0004,61929.0,61928.0,0.183994]
[1728190973025,0.0004,61929.0,61928.0,0.29116945]
[1728190978042,0.0004,61929.0,61928.0,0.29121903]
[1728190980431,0.0004,61929.0,61928.0,0.38811317]
[1728190981341,0.0004,61929.0,61928.0,0.38818594]
[1728190982445,0.0004,61929.0,61928.0,0.2912918]
[1728190984639,0.03830472,61929.0,61928.0,0.183994]
[1728190991245,0.03830748,61929.0,61928.0,0.183994]
[1728190992736,0.0004,61929.0,61928.0,0.41931276]
[1728190997156,0.0004,61929.0,61928.0,0.29134932]
[1728190999747,0.0004,61929.0,61928.0,0.183994]
[1728191004151,0.0004,61929.0,61928.0,0.2324648]
[1728191004460,0.0004,61929.0,61928.0,0.183994]
[1728191007752,0.0004,61929.0,61928.0,0.29134882]
[1728191011269,0.0004,61929.0,61928.0,0.4832232]
[1728191011767,0.0004,61929.0,61928.0,0.35534882]
[1728191013468,0.0004,61929.0,61928.0,0.48325615]
[1728191014959,0.0004,61929.0,61928.0,0.247994]
[1728191015165,0.0382789,61929.0,61928.0,0.247994]
[1728191017250,0.0004,61929.0,61928.0,0.31362991]
[1728191018759,0.0004,61929.0,61928.0,0.79806869]
[1728191019353,0.0004,61932.0,61928.0,0.79806869]
[1728191019354,0.0004,61932.0,61931.0,0.064591]
[1728191019660,0.0004,61932.0,61931.0,0.24062569]
[1728191020461,0.0004,61932.0,61931.0,0.24162569]
[1728191020772,0.0004,61932.0,61931.0,0.24362569]
[1728191022066,0.0004,61932.0,61931.0,0.60442569]
[1728191022460,0.0004,61932.0,61931.0,0.60442208]
[1728191022659,0.0004,61932.0,61931.0,0.56403372]
[1728191022869,0.0004,61933.0,61932.0,0.06459]
[1728191023067,0.0004,61933.0,61932.0,0.32465885]
[1728191023258,0.0004,61933.0,61932.0,0.66021613]
[1728191024264,0.0004,61933.0,61932.0,0.66121613]
[1728191025360,0.0004,61933.0,61932.0,0.30041613]
[1728191025571,0.0004,61933.0,61932.0,0.66121613]
[1728191029770,0.0004,61933.0,61932.0,0.72684721]
[1728191030068,0.0004,61933.0,61932.0,0.72672735]
[1728191030462,0.0004,61933.0,61932.0,0.36592735]
[1728191030769,0.0004,61933.0,61932.0,0.72672735]
[1728191032666,0.0004,61933.0,61932.0,0.83672735]
[1728191033561,0.0004,61933.0,61932.0,0.47592735]
[1728191033774,0.0004,61933.0,61932.0,0.83672735]
[1728191034478,0.0004,61933.0,61932.0,0.47592735]
[1728191034771,0.0004,61933.0,61932.0,0.83672735]
[1728191034975,0.0004,61933.0,61932.0,0.83670711]
[1728191035368,0.0004,61933.0,61932.0,0.836707]
[1728191036372,0.0004,61933.0,61932.0,0.83671543]
[1728191036762,0.0004,61933.0,61932.0,0.41028446]
[1728191036963,0.0004,61933.0,61932.0,0.77108446]
[1728191037973,0.0004,61933.0,61932.0,0.53679]
[1728191040560,0.0004,61935.0,61933.0,0.064589]
[1728191040764,0.0004,61934.0,61933.0,0.064589]
[1728191040974,0.0004,61934.0,61933.0,0.064989]
[1728191041570,0.0014,61934.0,61933.0,0.064989]
[1728191041984,0.0014,61934.0,61933.0,0.174989]
[1728191042168,0.0327,61934.0,61933.0,0.174989]
[1728191044874,0.0327,61934.0,61933.0,0.20023176]
[1728191045070,0.0327,61934.0,61933.0,0.79538166]
[1728191048363,0.0327,61934.0,61933.0,0.79559174]
[1728191049974,0.0327,61934.0,61933.0,0.90871646]
[1728191050371,0.0327,61934.0,61933.0,0.94910478]
[1728191051487,0.0327,61934.0,61933.0,0.5883047]
[1728191051780,0.0327,61934.0,61933.0,0.9491047]
[1728191051973,0.0327,61934.0,61933.0,0.83597998]
[1728191052779,0.0327,61934.0,61933.0,0.79559167]
[1728191052971,0.0327,61934.0,61933.0,0.83598025]
[1728191053175,0.0327,61934.0,61933.0,0.47518025]
[1728191053370,0.0327,61934.0,61933.0,0.83598025]
[1728191054281,0.0327,61934.0,61933.0,0.47518025]
[1728191054469,0.0327,61934.0,61933.0,0.83598025]
[1728191054984,0.0327,61934.0,61933.0,0.47518025]
[1728191055284,0.0327,61934.0,61933.0,0.83598025]
[1728191057188,0.0327,61934.0,61933.0,0.47518025]
[1728191057486,0.0327,61934.0,61933.0,0.83598025]
[1728191058380,0.0327,61934.0,61933.0,0.77034898]
[1728191058691,0.0327,61934.0,61933.0,0.83598024]
[1728191058881,0.0327,61934.0,61933.0,0.36521489]
[1728191059088,0.0327,61934.0,61933.0,0.40958363]
[1728191059384,0.0327,61934.0,61933.0,0.37889295]
[1728191060075,0.0327,61934.0,61933.0,0.174989]
[1728191060278,0.07068541,61934.0,61933.0,0.174989]
[1728191061690,0.07068541,61934.0,61933.0,0.0004]
[1728191061995,0.13527341,61934.0,61933.0,0.0004]
[1728191062183,0.49607341,61934.0,61933.0,0.0004]
[1728191067195,0.458088,61934.0,61933.0,0.18830617]
[1728191067595,0.458088,61934.0,61933.0,0.18829716]
[1728191067994,0.097288,61934.0,61933.0,0.18829716]
[1728191068198,0.097288,61934.0,61933.0,0.08114684]
[1728191070396,0.097288,61934.0,61933.0,0.0004]
[1728191072795,0.097288,61934.0,61933.0,0.08114684]
[1728191073195,0.097288,61934.0,61933.0,0.0004]
[1728191074285,0.458088,61934.0,61933.0,0.0004]
[1728191076598,1.542488,61934.0,61933.0,0.0004]
[1728191076902,0.064589,61933.0,61932.0,0.0004]
[1728191077097,0.659389,61933.0,61932.0,0.0004]
[1728191077397,1.29700946,61933.0,61932.0,0.0004]
[1728191077992,1.29700946,61933.0,61932.0,0.0014]
[1728191081501,1.29695512,61933.0,61932.0,0.0014]
[1728191082402,1.259389,61933.0,61932.0,0.0014]
[1728191082603,1.620189,61933.0,61932.0,0.0014]
[1728191084296,1.5556,61933.0,61930.0,0.0075]
[1728191084498,0.064991,61931.0,61930.0,0.0075]
[1728191084806,0.064593,61929.0,61928.0,0.0004]
[1728191084999,0.174993,61929.0,61928.0,0.0004]
[1728191086005,0.535793,61929.0,61928.0,0.0004]
[1728191086702,0.535793,61929.0,61928.0,0.0044]
[1728191087208,0.535793,61929.0,61928.0,0.0094]
[1728191087605,1.620233,61929.0,61928.0,0.0094]
[1728191089610,1.64994936,61929.0,61928.0,0.0094]
[1728191090421,1.68727507,61929.0,61928.0,0.0094]
[1728191093007,1.68767507,61929.0,61928.0,0.0094]
[1728191093705,1.32687507,61929.0,61928.0,0.0094]
[1728191093910,1.68767507,61929.0,61928.0,0.0094]
[1728191094313,1.32687507,61929.0,61928.0,0.0094]
[1728191094614,1.68767507,61929.0,61928.0,0.0094]
[1728191096303,1.68766411,61929.0,61928.0,0.0094]
[1728191097313,1.65034936,61929.0,61928.0,0.0094]
[1728191097720,0.56590936,61929.0,61928.0,0.0094]
[1728191099113,0.20510936,61929.0,61928.0,0.05777691]
[1728191099312,0.56590936,61929.0,61928.0,0.05777691]
[1728191101906,0.56590936,61929.0,61928.0,0.0094]
[1728191105208,0.60326598,61929.0,61928.0,0.0094]
[1728191105807,0.24246598,61929.0,61928.0,0.0094]
[1728191106013,0.60326598,61929.0,61928.0,0.0094]
[1728191109028,0.28585185,61929.0,61928.0,0.0094]
[1728191109318,0.64665185,61929.0,61928.0,0.0094]
[1728191110220,0.49326598,61929.0,61928.0,0.0094]
[1728191111617,0.60326598,61929.0,61928.0,0.0094]
[1728191112315,0.56590936,61929.0,61928.0,0.0094]
[1728191114525,0.536193,61929.0,61928.0,0.0094]
[1728191117628,0.175393,61929.0,61928.0,0.0094]
[1728191117931,0.536193,61929.0,61928.0,0.0094]
[1728191118629,0.175393,61929.0,61928.0,0.0094]
[1728191118830,0.536193,61929.0,61928.0,0.0094]
[1728191119933,0.175393,61929.0,61928.0,0.0094]
[1728191120131,0.536193,61929.0,61928.0,0.0094]
[1728191121738,0.175393,61929.0,61928.0,0.0094]
[1728191122332,0.536193,61929.0,61928.0,0.0094]
[1728191122839,0.175393,61929.0,61928.0,0.0094]
[1728191123139,0.536193,61929.0,61928.0,0.0094]
[1728191125838,0.536193,61929.0,61928.0,0.07400221]
[1728191126240,0.536193,61929.0,61928.0,0.0094]
[1728191127337,0.57364622,61929.0,61928.0,0.0094]
[1728191127836,0.61713122,61929.0,61928.0,0.0094]
[1728191128040,0.25633122,61929.0,61928.0,0.0094]
[1728191128341,0.57364622,61929.0,61928.0,0.0094]
[1728191128841,0.57364847,61929.0,61928.0,0.0094]
[1728191129033,0.61713644,61929.0,61928.0,0.0094]
[1728191130535,0.25633644,61929.0,61928.0,0.0094]
[1728191130750,0.61713644,61929.0,61928.0,0.0094]
[1728191132448,0.57364847,61929.0,61928.0,0.0094]
[1728191133745,0.21284847,61929.0,61928.0,0.0094]
[1728191133942,0.57364847,61929.0,61928.0,0.0094]
[1728191135249,0.536193,61929.0,61928.0,0.0094]
[1728191146558,0.426193,61929.0,61928.0,0.0094]
[1728191150365,0.50723167,61929.0,61928.0,0.0094]
[1728191152753,0.46369273,61929.0,61928.0,0.0094]
[1728191157466,0.426193,61929.0,61928.0,0.0094]
[1728191161062,0.065393,61929.0,61928.0,0.0094]
[1728191161258,0.426193,61929.0,61928.0,0.0094]
[1728191162867,0.065393,61929.0,61928.0,0.0094]
[1728191163059,0.426193,61929.0,61928.0,0.0094]
[1728191165562,0.46364649,61929.0,61928.0,0.0094]
[1728191171563,0.10284649,61929.0,61928.0,0.0094]
[1728191171767,0.46364649,61929.0,61928.0,0.0094]
[1728191172576,0.426193,61929.0,61928.0,0.0094]
[1728191172776,0.065393,61929.0,61928.0,0.0094]
[1728191173075,0.426193,61929.0,61928.0,0.0094]
[1728191175772,0.065393,61929.0,61928.0,0.0094]
[1728191175971,0.426193,61929.0,61928.0,0.0094]
[1728191176874,0.065393,61929.0,61928.0,0.0094]
[1728191177175,0.426193,61929.0,61928.0,0.0094]
[1728191179971,0.065393,61929.0,61928.0,0.0094]
[1728191180480,0.1028647,61929.0,61928.0,0.0094]
[1728191180674,0.4636647,61929.0,61928.0,0.0094]
[1728191182880,0.5736647,61929.0,61928.0,0.0094]
[1728191186881,0.2128647,61929.0,61928.0,0.0094]
[1728191187089,0.5736647,61929.0,61928.0,0.0094]
[1728191187481,0.536193,61929.0,61928.0,0.0094]
[1728191188083,0.536193,61929.0,61926.0,0.0004]
[1728191188390,0.11,61925.0,61924.0,0.08114684]
[1728191188690,0.11,61925.0,61924.0,0.0004]
[1728191188990,0.1104,61925.0,61924.0,0.0004]
[1728191189689,0.535797,61925.0,61924.0,0.0004]
[1728191190382,0.535797,61925.0,61924.0,0.0094]
[1728191190588,0.535797,61925.0,61924.0,0.0164]
[1728191195592,0.57322097,61925.0,61924.0,0.0164]
[1728191196986,0.61667071,61925.0,61924.0,0.0164]
[1728191197887,0.61667071,61925.0,61921.0,0.0004]
[1728191197888,0.55207371,61925.0,61921.0,0.0004]
[1728191198091,0.064603,61919.0,61918.0,0.0038]
[1728191198292,0.14782397,61919.0,61910.0,0.0038]
[1728191198495,0.14782397,61919.0,61909.0,0.0004]
[1728191198496,0.1104,61911.0,61909.0,0.0004]